fUSD/lending_fUSD_20240122
["ID","MTS","AMOUNT","RATE_DAILY","PERIOD"]
[312482066,1705918400221,-2429.43,0.00054794,120]
[312482067,1705918400246,-1278.95,0.00054794,120]
[312482068,1705918400272,-802.05,0.00054794,120]
[312482069,1705918400296,-500.0,0.00054794,120]
[312482070,1705918400323,-500.0,0.00054794,120]
[312482071,1705918400348,-500.0,0.00054794,120]
[312482072,1705918400372,-1540.06,0.00054794,120]
[312482073,1705918400396,-1946.72,0.00054794,120]
[312482074,1705918400421,-1705.01,0.00054794,120]
[312482075,1705918400450,-500.0,0.00054794,120]
[312482076,1705918400476,-500.0,0.00054794,120]
[312482077,1705918400501,-602.12,0.00054794,120]
[312482078,1705918400524,-500.0,0.00054794,120]
[312482079,1705918400548,-500.0,0.00054794,120]
[312482080,1705918400573,-1371.19,0.00054794,120]
[312482081,1705918400597,-500.0,0.00054794,120]
[312482082,1705918400621,-2895.35,0.00054794,120]
[312482083,1705918400645,-792.25,0.00054794,120]
[312482084,1705918400669,-2896.79,0.00054794,120]
[312482085,1705918400692,-502.24478512,0.00054794,120]
[312482086,1705918400716,-500.0,0.00054794,120]
[312482087,1705918400741,-912.7,0.00054794,120]
[312482088,1705918400766,-517.64715807,0.00054794,120]
[312482089,1705918400791,-500.0,0.00054794,120]
[312482090,1705918400817,-500.0,0.00054794,120]
[312482091,1705918400842,-973.37,0.00054794,120]
[312482092,1705918400867,-500.0,0.00054794,120]
[312482093,1705918400892,-2453.18,0.00054794,120]
[312482094,1705918400917,-982.47,0.00054794,120]
[312482095,1705918400942,-1033.24,0.00054794,120]
[312482096,1705918400966,-500.0,0.00054794,120]
[312482097,1705918400991,-1382.98,0.00054794,120]
[312482098,1705918401016,-500.0,0.00054794,120]
[312482099,1705918401045,-500.0,0.00054794,120]
[312482100,1705918401070,-500.0,0.00054794,120]
[312482101,1705918401094,-500.0,0.00054794,120]
[312482102,1705918401118,-500.0,0.00054794,120]
[312482103,1705918401141,-501.95264939,0.00054794,120]
[312482104,1705918401165,-505.31180407,0.00054794,120]
[312482105,1705918401190,-500.0,0.00054794,120]
[312482106,1705918401213,-500.0,0.00054794,120]
[312482107,1705918401238,-1169.98,0.00054794,120]
[312482108,1705918401263,-500.0,0.00054794,120]
[312482109,1705918401289,-3638.12,0.00054794,120]
[312482110,1705918401313,-500.0,0.00054794,120]
[312482111,1705918401337,-500.0,0.00054794,120]
[312482112,1705918401360,-500.0,0.00054794,120]
[312482113,1705918401384,-2460.08,0.00054794,120]
[312482114,1705918401408,-2674.45,0.00054794,120]
[312482115,1705918401434,-2081.85,0.00054794,120]
[312482116,1705918401459,-723.04,0.00054794,120]
[312482117,1705918401483,-563.17,0.00054794,120]
[312482118,1705918401509,-1502.27,0.00054794,120]
[312482119,1705918401534,-500.0,0.00054794,120]
[312482120,1705918401559,-500.0,0.00054794,120]
[312482121,1705918401584,-500.0,0.00054794,120]
[312482122,1705918401610,-902.59,0.00054794,120]
[312482123,1705918401635,-500.0,0.00054794,120]
[312482124,1705918401660,-500.0,0.00054794,120]
[312482125,1705918401686,-500.0,0.00054794,120]
[312482126,1705918401713,-1240.23,0.00054794,120]
[312482127,1705918401738,-6913.76,0.00054794,120]
[312482128,1705918401762,-668.9,0.00054794,120]
[312482129,1705918401786,-511.46942104,0.00054794,120]
[312482130,1705918401810,-2982.63,0.00054794,120]
[312482131,1705918401835,-500.0,0.00054794,120]
[312482132,1705918401859,-1676.05,0.00054794,120]
[312482133,1705918401884,-5100.45,0.00054794,120]
[312482134,1705918401909,-500.0,0.00054794,120]
[312482135,1705918401933,-503.67380825,0.00054794,120]
[312482136,1705918401961,-500.0,0.00054794,120]
[312482137,1705918401986,-500.0,0.00054794,120]
[312482138,1705918402010,-1239.21,0.00054794,120]
[312482139,1705918402033,-500.0,0.00054794,120]
[312482140,1705918402056,-1038.92,0.00054794,120]
[312482141,1705918402081,-1181.06,0.00054794,120]
[312482142,1705918402105,-500.0,0.00054794,120]
[312482143,1705918402129,-6435.91,0.00054794,120]
[312482144,1705918402152,-500.0,0.00054794,120]
[312482145,1705918402175,-1214.42,0.00054794,120]
[312482146,1705918402199,-509.82962435,0.00054794,120]
[312482147,1705918402224,-1433.89,0.00054794,120]
[312482148,1705918402247,-1064.35,0.00054794,120]
[312482149,1705918402271,-500.0,0.00054794,120]
[312482150,1705918402295,-2142.16,0.00054794,120]
[312482151,1705918402319,-500.0,0.00054794,120]
[312482152,1705918402342,-587.32989702,0.00054794,120]
[312482153,1705918402366,-500.0,0.00054794,120]
[312482154,1705918402388,-500.0,0.00054794,120]
[312482155,1705918402411,-873.61,0.00054794,120]
[312482156,1705918402434,-500.0,0.00054794,120]
[312482157,1705918402458,-2191.94,0.00054794,120]
[312482158,1705918402671,-532.44,0.00054794,120]
[312482159,1705918402696,-1073.55,0.00054794,120]
[312482160,1705918402720,-500.0,0.00054794,120]
[312482161,1705918402744,-9034.29,0.00054794,120]
[312482162,1705918402766,-918.93,0.00054794,120]
[312482163,1705918402791,-3414.72,0.00054794,120]
[312482164,1705918402816,-1999.18,0.00054794,120]
[312482165,1705918402841,-1061.34,0.00054794,120]
[312482166,1705918402864,-500.0,0.00054794,120]
[312482167,1705918402887,-504.01576502,0.00054794,120]
[312482168,1705918402911,-500.0,0.00054794,120]
[312482169,1705918402937,-922.93,0.00054794,120]
[312482170,1705918402963,-500.0,0.00054794,120]
[312482171,1705918402987,-500.0,0.00054794,120]
[312482172,1705918403011,-500.0,0.00054794,120]
[312482173,1705918403036,-500.0,0.00054794,120]
[312482174,1705918403059,-502.83665808,0.00054794,120]
[312482175,1705918403083,-1064.85,0.00054794,120]
[312482176,1705918403107,-500.0,0.00054794,120]
[312482177,1705918403130,-496.56438746,0.00054794,120]
[312482178,1705918403153,-500.0,0.00054794,120]
[312482179,1705918403176,-500.0,0.00054794,120]
[312482180,1705918403202,-186.75616252,0.00054794,120]
[312482181,1705918403227,-500.0,0.00054794,120]
[312482182,1705918403251,-808.33,0.00054794,120]
[312482183,1705918403274,-501.47762087,0.00054794,120]
[312482184,1705918403298,-500.0,0.00054794,120]
[312482185,1705918403322,-2476.34,0.00054794,120]
[312482186,1705918403344,-500.0,0.00054794,120]
[312482187,1705918403366,-532.77,0.00054794,120]
[312482188,1705918403389,-500.0,0.00054794,120]
[312482189,1705918403411,-656.23,0.00054794,120]
[312482190,1705918403434,-424.10754247,0.00054794,120]
[312482191,1705918403457,-500.0,0.00054794,120]
[312482192,1705918403479,-4107.9,0.00054794,120]
[312482193,1705918403502,-500.0,0.00054794,120]
[312482194,1705918403525,-8022.14,0.00054794,120]
[312482195,1705918403547,-699.33,0.00054794,120]
[312482196,1705918403570,-1665.07,0.00054794,120]
[312482197,1705918403593,-724.39,0.00054794,120]
[312482198,1705918403615,-500.0,0.00054794,120]
[312482199,1705918403638,-1116.22,0.00054794,120]
[312482200,1705918403660,-500.0,0.00054794,120]
[312482201,1705918403683,-2512.1,0.00054794,120]
[312482202,1705918403708,-500.0,0.00054794,120]
[312482203,1705918403730,-500.0,0.00054794,120]
[312482204,1705918403753,-500.0,0.00054794,120]
[312482205,1705918403775,-500.0,0.00054794,120]
[312482206,1705918403798,-657.56,0.00054794,120]
[312482207,1705918403821,-500.0,0.00054794,120]
[312482208,1705918403845,-1194.47,0.00054794,120]
[312482209,1705918403868,-1720.31,0.00054794,120]
[312482210,1705918403891,-500.0,0.00054794,120]
[312482211,1705918403914,-500.0,0.00054794,120]
[312482212,1705918403938,-2301.29,0.00054794,120]
[312482213,1705918403962,-706.13,0.00054794,120]
[312482214,1705918403985,-500.0,0.00054794,120]
[312482215,1705918404008,-553.69,0.00054794,120]
[312482216,1705918404031,-214.00673261,0.00054794,120]
[312482217,1705918404055,-522.40022352,0.00054794,120]
[312482218,1705918404079,-500.0,0.00054794,120]
[312482219,1705918404102,-447.57213007,0.00054794,120]
[312482220,1705918404126,-1669.08,0.00054794,120]
[312482221,1705918404148,-500.0,0.00054794,120]
[312482222,1705918404174,-19362.15,0.00054794,120]
[312482223,1705918404198,-1087.67,0.00054794,120]
[312482224,1705918404225,-712.61,0.00054794,120]
[312482225,1705918404249,-600.72,0.00054794,120]
[312482226,1705918404272,-500.0,0.00054794,120]
[312482227,1705918404296,-500.0,0.00054794,120]
[312482228,1705918404319,-500.0,0.00054794,120]
[312482229,1705918404341,-500.0,0.00054794,120]
[312482230,1705918404365,-500.0,0.00054794,120]
[312482231,1705918404389,-599.68,0.00054794,120]
[312482232,1705918404413,-500.0,0.00054794,120]
[312482233,1705918404436,-1199.72,0.00054794,120]
[312482234,1705918404462,-1532.53,0.00054794,120]
[312482235,1705918404486,-1694.05,0.00054794,120]
[312482236,1705918404509,-500.0,0.00054794,120]
[312482237,1705918404533,-500.0,0.00054794,120]
[312482238,1705918404558,-6686.82,0.00054794,120]
[312482239,1705918404581,-500.0,0.00054794,120]
[312482240,1705918404605,-1450.35,0.00054794,120]
[312482241,1705918404629,-1145.67,0.00054794,120]
[312482242,1705918404652,-532.98,0.00054794,120]
[312482243,1705918404675,-2499.42,0.00054794,120]
[312482244,1705918404698,-385.81310519,0.00054794,120]
[312482245,1705918404721,-500.0,0.00054794,120]
[312482246,1705918404744,-500.0,0.00054794,120]
[312482247,1705918404767,-500.0,0.00054794,120]
[312482248,1705918404790,-6801.26,0.00054794,120]
[312482249,1705918404813,-500.0,0.00054794,120]
[312482250,1705918404836,-500.0,0.00054794,120]
[312482251,1705918404860,-1565.19,0.00054794,120]
[312482252,1705918404883,-1113.77,0.00054794,120]
[312482253,1705918404908,-826.52,0.00054794,120]
[312482254,1705918404931,-949.09,0.00054794,120]
[312482255,1705918404955,-565.56,0.00054794,120]
[312482256,1705918404979,-500.0,0.00054794,120]
[312482257,1705918405003,-1338.84,0.00054794,120]
[312482258,1705918405026,-500.0,0.00054794,120]
[312482259,1705918405050,-554.17,0.00054794,120]
[312482260,1705918405075,-5157.15,0.00054794,120]
[312482261,1705918405099,-500.0,0.00054794,120]
[312482262,1705918405122,-500.0,0.00054794,120]
[312482263,1705918405320,-2238.16,0.00054794,120]
[312482264,1705918405351,-500.0,0.00054794,120]
[312482265,1705918405377,-1051.0,0.00054794,120]
[312482266,1705918405403,-500.0,0.00054794,120]
[312482267,1705918405428,-500.0,0.00054794,120]
[312482268,1705918405456,-1373.79,0.00054794,120]
[312482269,1705918405480,-1019.58,0.00054794,120]
[312482270,1705918405504,-967.68,0.00054794,120]
[312482271,1705918405528,-1695.45,0.00054794,120]
[312482272,1705918405550,-500.0,0.00054794,120]
[312482273,1705918405574,-182.59281555,0.00054794,120]
[312482274,1705918405598,-500.0,0.00054794,120]
[312482275,1705918405620,-473.36082457,0.00054794,120]
[312482276,1705918405645,-529.58,0.00054794,120]
[312482277,1705918405669,-500.0,0.00054794,120]
[312482278,1705918405693,-741.59,0.00054794,120]
[312482279,1705918405716,-500.0,0.00054794,120]
[312482280,1705918405739,-1989.11,0.00054794,120]
[312482281,1705918405764,-819.31,0.00054794,120]
[312482282,1705918405788,-500.0,0.00054794,120]
[312482283,1705918405814,-1387.06,0.00054794,120]
[312482284,1705918405841,-781.78,0.00054794,120]
[312482285,1705918405868,-584.46,0.00054794,120]
[312482286,1705918405899,-2030.19,0.00054794,120]
[312482287,1705918405928,-1238.5,0.00054794,120]
[312482288,1705918405965,-510.96088892,0.00054794,120]
[312482289,1705918405996,-1848.21,0.00054794,120]
[312482290,1705918406022,-500.0,0.00054794,120]
[312482291,1705918406047,-500.0,0.00054794,120]
[312482292,1705918406075,-500.0,0.00054794,120]
[312482293,1705918406101,-1704.55,0.00054794,120]
[312482294,1705918406127,-1593.25,0.00054794,120]
[312482295,1705918406152,-1786.07,0.00054794,120]
[312482296,1705918406175,-500.0,0.00054794,120]
[312482297,1705918406202,-500.0,0.00054794,120]
[312482298,1705918406230,-1836.11,0.00054794,120]
[312482299,1705918406255,-500.0,0.00054794,120]
[312482300,1705918406280,-863.91,0.00054794,120]
[312482301,1705918406304,-500.0,0.00054794,120]
[312482302,1705918406328,-500.0,0.00054794,120]
[312482303,1705918406352,-500.0,0.00054794,120]
[312482304,1705918406375,-500.0,0.00054794,120]
[312482305,1705918406399,-500.0,0.00054794,120]
[312482306,1705918406423,-801.79,0.00054794,120]
[312482307,1705918406451,-500.0,0.00054794,120]
[312482308,1705918406475,-2640.84,0.00054794,120]
[312482309,1705918406499,-500.0,0.00054794,120]
[312482310,1705918406524,-2001.63,0.00054794,120]
[312482311,1705918406548,-500.0,0.00054794,120]
[312482312,1705918406573,-500.0,0.00054794,120]
[312482313,1705918406597,-500.0,0.00054794,120]
[312482314,1705918406621,-359.62,0.00054794,120]
[312482315,1705918406647,-2344.12,0.00054794,120]
[312482316,1705918406670,-614.28091124,0.00054794,120]
[312482317,1705918406697,-1496.93,0.00054794,120]
[312482318,1705918406720,-1578.24,0.00054794,120]
[312482319,1705918406745,-865.46,0.00054794,120]
[312482320,1705918406769,-500.0,0.00054794,120]
[312482321,1705918406793,-2342.35,0.00054794,120]
[312482322,1705918406818,-1034.4,0.00054794,120]
[312482323,1705918406842,-1186.8,0.00054794,120]
[312482324,1705918406866,-500.0,0.00054794,120]
[312482325,1705918406890,-1032.19,0.00054794,120]
[312482326,1705918406915,-3060.2,0.00054794,120]
[312482327,1705918406940,-761.23,0.00054794,120]
[312482328,1705918406970,-500.0,0.00054794,120]
[312482329,1705918406995,-500.0,0.00054794,120]
[312482330,1705918407019,-500.0,0.00054794,120]
[312482331,1705918407044,-500.0,0.00054794,120]
[312482332,1705918407069,-745.92,0.00054794,120]
[312482333,1705918407094,-500.0,0.00054794,120]
[312482334,1705918407118,-736.11,0.00054794,120]
[312482335,1705918407142,-1188.48,0.00054794,120]
[312482336,1705918407167,-500.0,0.00054794,120]
[312482337,1705918407192,-2308.27,0.00054794,120]
[312482338,1705918407220,-500.0,0.00054794,120]
[312482339,1705918407246,-1372.18,0.00054794,120]
[312482340,1705918407272,-1972.56,0.00054794,120]
[312482341,1705918407296,-1101.89,0.00054794,120]
[312482342,1705918407320,-500.0,0.00054794,120]
[312482343,1705918407344,-552.39,0.00054794,120]
[312482344,1705918407368,-500.0,0.00054794,120]
[312482345,1705918407395,-2142.95,0.00054794,120]
[312482346,1705918407419,-541.92,0.00054794,120]
[312482347,1705918407445,-500.0,0.00054794,120]
[312482348,1705918407468,-2444.17,0.00054794,120]
[312482349,1705918407491,-500.0,0.00054794,120]
[312482350,1705918407515,-961.77,0.00054794,120]
[312482351,1705918407538,-2463.13,0.00054794,120]
[312482352,1705918407561,-500.0,0.00054794,120]
[312482353,1705918407584,-500.0,0.00054794,120]
[312482354,1705918407607,-500.0,0.00054794,120]
[312482355,1705918407629,-747.18,0.00054794,120]
[312482356,1705918407652,-1281.33,0.00054794,120]
[312482357,1705918407676,-1524.9,0.00054794,120]
[312482358,1705918407702,-500.0,0.00054794,120]
[312482359,1705918407726,-500.0,0.00054794,120]
[312482360,1705918407750,-508.04396166,0.00054794,120]
[312482361,1705918407774,-924.15,0.00054794,120]
[312482362,1705918407798,-500.0,0.00054794,120]
[312482363,1705918407822,-500.0,0.00054794,120]
[312482364,1705918407845,-500.0,0.00054794,120]
[312482365,1705918407868,-500.0,0.00054794,120]
[312482366,1705918407892,-500.0,0.00054794,120]
[312482367,1705918407916,-468.51481869,0.00054794,120]
[312482368,1705918408099,-500.0,0.00054794,120]
[312482369,1705918408141,-500.0,0.00054794,120]
[312482370,1705918408165,-500.0,0.00054794,120]
[312482371,1705918408188,-500.0,0.00054794,120]
[312482372,1705918408213,-500.0,0.00054794,120]
[312482373,1705918408240,-376.2424739,0.00054794,120]
[312482374,1705918408265,-14502.99,0.00054794,120]
[312482375,1705918408289,-500.0,0.00054794,120]
[312482376,1705918408314,-2585.05,0.00054794,120]
[312482377,1705918408337,-500.0,0.00054794,120]
[312482378,1705918408361,-684.76,0.00054794,120]
[312482379,1705918408385,-1085.35,0.00054794,120]
[312482380,1705918408409,-2250.02,0.00054794,120]
[312482381,1705918408433,-2371.14,0.00054794,120]
[312482382,1705918408458,-1090.09,0.00054794,120]
[312482383,1705918408481,-1293.87,0.00054794,120]
[312482384,1705918408504,-1182.55,0.00054794,120]
[312482385,1705918408528,-500.0,0.00054794,120]
[312482386,1705918408551,-500.0,0.00054794,120]
[312482387,1705918408574,-513.39079736,0.00054794,120]
[312482388,1705918408597,-500.0,0.00054794,120]
[312482389,1705918408620,-3817.42,0.00054794,120]
[312482390,1705918408645,-784.09,0.00054794,120]
[312482391,1705918408668,-4226.7,0.00054794,120]
[312482392,1705918408691,-500.0,0.00054794,120]
[312482393,1705918408717,-3693.98,0.00054794,120]
[312482394,1705918408741,-500.0,0.00054794,120]
[312482395,1705918408764,-892.42,0.00054794,120]
[312482396,1705918408788,-2184.8,0.00054794,120]
[312482397,1705918408812,-1360.81,0.00054794,120]
[312482398,1705918408836,-1092.84,0.00054794,120]
[312482399,1705918408860,-3654.95,0.00054794,120]
[312482400,1705918408884,-16683.3,0.00054794,120]
[312482401,1705918408907,-817.95,0.00054794,120]
[312482402,1705918408931,-500.0,0.00054794,120]
[312482403,1705918408955,-1780.31,0.00054794,120]
[312482404,1705918408978,-705.95,0.00054794,120]
[312482405,1705918409003,-500.0,0.00054794,120]
[312482406,1705918409027,-500.0,0.00054794,120]
[312482407,1705918409051,-500.0,0.00054794,120]
[312482408,1705918409075,-2271.35,0.00054794,120]
[312482409,1705918409098,-500.0,0.00054794,120]
[312482410,1705918409121,-2209.82,0.00054794,120]
[312482411,1705918409145,-1049.17,0.00054794,120]
[312482412,1705918409168,-500.0,0.00054794,120]
[312482413,1705918409192,-1714.36,0.00054794,120]
[312482414,1705918409220,-500.0,0.00054794,120]
[312482415,1705918409243,-500.0,0.00054794,120]
[312482416,1705918409268,-972.55,0.00054794,120]
[312482417,1705918409292,-500.0,0.00054794,120]
[312482418,1705918409318,-500.0,0.00054794,120]
[312482419,1705918409341,-960.95,0.00054794,120]
[312482420,1705918409364,-739.42,0.00054794,120]
[312482421,1705918409387,-738.1,0.00054794,120]
[312482422,1705918409412,-602.34,0.00054794,120]
[312482423,1705918409436,-500.0,0.00054794,120]
[312482424,1705918409460,-500.0,0.00054794,120]
[312482425,1705918409483,-500.0,0.00054794,120]
[312482426,1705918409506,-788.32,0.00054794,120]
[312482427,1705918409529,-1467.59,0.00054794,120]
[312482428,1705918409552,-1216.84,0.00054794,120]
[312482429,1705918409576,-514.37,0.00054794,120]
[312482430,1705918409598,-500.0,0.00054794,120]
[312482431,1705918409620,-500.0,0.00054794,120]
[312482432,1705918409643,-5756.1,0.00054794,120]
[312482433,1705918409667,-3899.08,0.00054794,120]
[312482434,1705918409689,-1125.23424195,0.00054794,120]
[312482435,1705918409714,-500.0,0.00054794,120]
[312482436,1705918409736,-500.0,0.00054794,120]
[312482437,1705918409760,-500.0,0.00054794,120]
[312482438,1705918409783,-1819.22,0.00054794,120]
[312482439,1705918409808,-500.0,0.00054794,120]
[312482440,1705918409831,-500.0,0.00054794,120]
[312482441,1705918409856,-1489.53,0.00054794,120]
[312482442,1705918409879,-1836.66,0.00054794,120]
[312482443,1705918409904,-759.64,0.00054794,120]
[312482444,1705918409927,-1192.99,0.00054794,120]
[312482445,1705918409953,-502.89902398,0.00054794,120]
[312482446,1705918409978,-500.0,0.00054794,120]
[312482447,1705918410002,-16000.0,0.00054795,120]
[312482448,1705918410026,-4465.0,0.000548,120]
[312482449,1705918410049,-812.62364061,0.000548,120]
[312482450,1705918410073,-150.0,0.000548,120]
[312482451,1705918410097,-350.0,0.00054959,120]
[312482452,1705918410121,-276.943,0.00055,120]
[312482453,1705918410144,-169.0,0.00055,120]
[312482454,1705918410169,-500.0,0.00055068,120]
[312482455,1705918410192,-500.0,0.00055068,120]
[312482456,1705918410217,-713.28,0.00055068,120]
[312482457,1705918410240,-500.0,0.00055068,120]
[312482458,1705918410262,-500.0,0.00055068,120]
[312482459,1705918410286,-15551.99,0.00055068,120]
[312482460,1705918410309,-602.84,0.00055068,120]
[312482461,1705918410331,-618.39042831,0.00055068,120]
[312482462,1705918410354,-645.74,0.00055068,120]
[312482463,1705918410377,-500.0,0.00055068,120]
[312482464,1705918410400,-500.0,0.00055068,120]
[312482465,1705918410423,-636.13,0.00055068,120]
[312482466,1705918410445,-500.0,0.00055068,120]
[312482467,1705918410468,-501.48071711,0.00055068,120]
[312482468,1705918410491,-500.0,0.00055068,120]
[312482469,1705918410514,-500.0,0.00055068,120]
[312482470,1705918410536,-500.0,0.00055068,120]
[312482471,1705918410559,-1434.64,0.00055068,120]
[312482472,1705918410582,-509.16644425,0.00055068,120]
[312482473,1705918410782,-1398.85,0.00055068,120]
[312482474,1705918410807,-500.0,0.00055068,120]
[312482475,1705918410831,-500.0,0.00055068,120]
[312482476,1705918410854,-178.32238773,0.00055068,120]
[312482477,1705918410878,-2257.7,0.00055068,120]
[312482478,1705918410902,-997.7,0.00055068,120]
[312482479,1705918410926,-745.51,0.00055068,120]
[312482480,1705918410950,-1472.88,0.00055068,120]
[312482481,1705918410973,-1904.28,0.00055068,120]
[312482482,1705918410997,-500.0,0.00055068,120]
[312482483,1705918411022,-500.0,0.00055068,120]
[312482484,1705918411046,-500.0,0.00055068,120]
[312482485,1705918411070,-500.0,0.00055068,120]
[312482486,1705918411095,-707.21,0.00055068,120]
[312482487,1705918411120,-1764.0,0.00055068,120]
[312482488,1705918411145,-1907.12,0.00055068,120]
[312482489,1705918411169,-500.0,0.00055068,120]
[312482490,1705918411193,-500.0,0.00055068,120]
[312482491,1705918411222,-500.0,0.00055068,120]
[312482492,1705918411245,-500.0,0.00055068,120]
[312482493,1705918411269,-500.0,0.00055068,120]
[312482494,1705918411293,-500.0,0.00055068,120]
[312482495,1705918411317,-500.0,0.00055068,120]
[312482496,1705918411341,-500.0,0.00055068,120]
[312482497,1705918411365,-1187.06,0.00055068,120]
[312482498,1705918411390,-7460.54,0.00055068,120]
[312482499,1705918411414,-500.0,0.00055068,120]
[312482500,1705918411436,-500.0,0.00055068,120]
[312482501,1705918411459,-500.0,0.00055068,120]
[312482502,1705918411483,-2478.45,0.00055068,120]
[312482503,1705918411505,-500.0,0.00055068,120]
[312482504,1705918411528,-500.0,0.00055068,120]
[312482505,1705918411551,-500.0,0.00055068,120]
[312482506,1705918411574,-742.13,0.00055068,120]
[312482507,1705918411597,-1783.77,0.00055068,120]
[312482508,1705918411621,-4667.27,0.00055068,120]
[312482509,1705918411643,-6273.73,0.00055068,120]
[312482510,1705918411666,-2435.59,0.00055068,120]
[312482511,1705918411689,-500.0,0.00055068,120]
[312482512,1705918411714,-500.0,0.00055068,120]
[312482513,1705918411737,-2017.06,0.00055068,120]
[312482514,1705918411760,-500.0,0.00055068,120]
[312482515,1705918411783,-521.80540692,0.00055068,120]
[312482516,1705918411807,-500.0,0.00055068,120]
[312482517,1705918411830,-500.0,0.00055068,120]
[312482518,1705918411855,-500.0,0.00055068,120]
[312482519,1705918411880,-1952.41,0.00055068,120]
[312482520,1705918411905,-1278.95,0.00055068,120]
[312482521,1705918411929,-2429.43,0.00055068,120]
[312482522,1705918411953,-802.05,0.00055068,120]
[312482523,1705918411976,-500.0,0.00055068,120]
[312482524,1705918412000,-500.0,0.00055068,120]
[312482525,1705918412026,-1540.06,0.00055068,120]
[312482526,1705918412050,-1946.72,0.00055068,120]
[312482527,1705918412074,-1705.01,0.00055068,120]
[312482528,1705918412097,-500.0,0.00055068,120]
[312482529,1705918412120,-500.0,0.00055068,120]
[312482530,1705918412142,-602.12,0.00055068,120]
[312482531,1705918412165,-500.0,0.00055068,120]
[312482532,1705918412188,-1371.19,0.00055068,120]
[312482533,1705918412212,-500.0,0.00055068,120]
[312482534,1705918412240,-2895.35,0.00055068,120]
[312482535,1705918412266,-792.25,0.00055068,120]
[312482536,1705918412291,-2896.79,0.00055068,120]
[312482537,1705918412316,-500.0,0.00055068,120]
[312482538,1705918412338,-912.7,0.00055068,120]
[312482539,1705918412361,-500.0,0.00055068,120]
[312482540,1705918412384,-500.0,0.00055068,120]
[312482541,1705918412407,-973.37,0.00055068,120]
[312482542,1705918412431,-2453.18,0.00055068,120]
[312482543,1705918412458,-982.47,0.00055068,120]
[312482544,1705918412483,-1033.24,0.00055068,120]
[312482545,1705918412506,-500.0,0.00055068,120]
[312482546,1705918412529,-1382.98,0.00055068,120]
[312482547,1705918412553,-500.0,0.00055068,120]
[312482548,1705918412577,-500.0,0.00055068,120]
[312482549,1705918412601,-500.0,0.00055068,120]
[312482550,1705918412624,-530.95316466,0.00055068,120]
[312482551,1705918412647,-500.0,0.00055068,120]
[312482552,1705918412670,-1169.98,0.00055068,120]
[312482553,1705918412692,-500.0,0.00055068,120]
[312482554,1705918412721,-3638.12,0.00055068,120]
[312482555,1705918412745,-500.0,0.00055068,120]
[312482556,1705918412768,-500.0,0.00055068,120]
[312482557,1705918412791,-500.0,0.00055068,120]
[312482558,1705918412816,-2460.08,0.00055068,120]
[312482559,1705918412839,-2081.85,0.00055068,120]
[312482560,1705918412862,-2674.45,0.00055068,120]
[312482561,1705918412885,-723.04,0.00055068,120]
[312482562,1705918412908,-563.17,0.00055068,120]
[312482563,1705918412934,-1502.27,0.00055068,120]
[312482564,1705918412961,-500.0,0.00055068,120]
[312482565,1705918412985,-500.0,0.00055068,120]